bitfinex/quotes_BTCUSD_20251213
["timestamp","ask_amount","ask_price","bid_price","bid_amount"]
[1765620485705,0.03314172,90510.0,90507.0,0.01104886]
[1765620486257,0.02209322,90510.0,90508.0,0.22097494]
[1765620486462,0.02209322,90510.0,90507.0,0.01104886]
[1765620486634,0.25411197,90510.0,90509.0,0.001]
[1765620487044,0.02209322,90510.0,90509.0,0.002]
[1765620488401,0.02209322,90510.0,90507.0,0.01104886]
[1765620488607,0.02209322,90510.0,90507.0,0.01204886]
[1765620488820,0.02209322,90510.0,90508.0,0.001]
[1765620489325,0.02209322,90510.0,90509.0,0.001]
[1765620489528,0.02209322,90510.0,90507.0,0.01104886]
[1765620489723,0.02209322,90510.0,90508.0,0.22097494]
[1765620490060,0.02209322,90510.0,90507.0,0.01204886]
[1765620490267,0.02209322,90510.0,90507.0,0.01104886]
[1765620491036,0.01104947,90502.0,90496.0,0.02252021]
[1765620491268,0.22098959,90502.0,90496.0,0.02252021]
[1765620491457,0.22099377,90501.0,90496.0,0.02252021]
[1765620491693,0.22099377,90501.0,90497.0,0.01105009]
[1765620491694,0.0110496,90501.0,90497.0,0.01105009]
[1765620491915,0.0110496,90501.0,90498.0,0.02251996]
[1765620492331,0.23204,90502.0,90499.0,0.004]
[1765620492575,0.23204,90502.0,90499.0,0.01304984]
[1765620492781,0.01104947,90502.0,90499.0,0.01104984]
[1765620493409,0.01104947,90502.0,90499.0,0.01304984]
[1765620494046,0.01104935,90503.0,90499.0,0.01304984]
[1765620494247,0.01104935,90503.0,90500.0,0.02427]
[1765620494478,0.2320389,90503.0,90500.0,0.02427]
[1765620494879,0.01104935,90503.0,90500.0,0.02427]
[1765620495222,0.01104935,90503.0,90500.0,0.03531972]
[1765620495420,0.01104935,90503.0,90500.0,0.03731972]
[1765620495629,0.01104911,90505.0,90501.0,0.0110496]
[1765620497770,0.01104911,90505.0,90501.0,0.0120496]
[1765620497970,0.01104911,90505.0,90501.0,0.0130496]
[1765620498196,0.01104911,90505.0,90502.0,0.01104947]
[1765620498414,0.01104911,90505.0,90502.0,0.03531947]
[1765620498616,0.23202749,90507.0,90502.0,0.03531947]
[1765620498820,0.03949322,90510.0,90506.0,0.01147]
[1765620498999,0.27151403,90510.0,90506.0,0.01147]
[1765620499199,0.232023,90509.0,90506.0,0.03574]
[1765620499874,0.02209322,90510.0,90509.0,0.22097249]
[1765620500078,0.02209322,90510.0,90509.0,0.24840249]
[1765620500289,0.02209322,90510.0,90509.0,0.27267249]
[1765620501657,0.02209322,90510.0,90509.0,0.27367249]
[1765620502254,0.02209322,90510.0,90509.0,0.27467249]
[1765620502697,0.02209322,90510.0,90509.0,0.0537]
[1765620502935,0.02209322,90510.0,90509.0,0.27467249]
[1765620504523,0.02209322,90510.0,90509.0,0.0537]
[1765620505709,0.02209322,90510.0,90509.0,0.02943]
[1765620506414,0.02209322,90510.0,90509.0,0.05383]
[1765620506619,0.02209322,90510.0,90509.0,0.05544287]
[1765620522049,0.02209322,90510.0,90509.0,0.07754011]
[1765620523079,0.02209322,90510.0,90509.0,0.05544287]
[1765620541536,0.23210178,90518.0,90516.0,0.22095451]
[1765620541537,0.00010225,90518.0,90516.0,0.22095451]
[1765620541745,0.00010225,90518.0,90517.0,0.02585]
[1765620542008,0.00010225,90518.0,90517.0,0.05007]
[1765620542875,0.00110225,90518.0,90517.0,0.05007]
[1765620544046,0.00010225,90518.0,90517.0,0.05007]
[1765620544272,0.00010225,90518.0,90517.0,0.05168287]
[1765620544538,0.00010225,90518.0,90517.0,0.05268287]
[1765620544744,0.00010225,90518.0,90517.0,0.08586193]
[1765620544922,0.00010225,90518.0,90517.0,0.08686193]
[1765620558738,0.00010225,90518.0,90517.0,0.10895722]
[1765620576411,0.00010225,90518.0,90517.0,0.16858503]
[1765620583914,0.00010225,90518.0,90517.0,0.10895722]
[1765620584904,0.00010225,90518.0,90517.0,0.15897561]
[1765620593775,0.00010225,90518.0,90517.0,0.03517906]
[1765620594000,0.06906547,90518.0,90517.0,0.002]
[1765620594863,0.01104801,90514.0,90511.0,0.04423144]
[1765620595065,0.23200918,90514.0,90511.0,0.03318306]
[1765620595606,0.22096476,90513.0,90511.0,0.03318306]
[1765620597424,0.0110485,90510.0,90505.0,0.23202952]
[1765620597645,0.01104862,90509.0,90508.0,0.03318306]
[1765620598476,0.01104874,90508.0,90505.0,0.01104911]
[1765620598632,0.01104874,90508.0,90504.0,0.05574332]
[1765620598906,0.01104862,90509.0,90506.0,0.01104899]
[1765620599053,0.24047779,90511.0,90508.0,0.001]
[1765620599455,0.24047779,90511.0,90507.0,0.01104886]
[1765620600213,0.0110485,90510.0,90507.0,0.01104886]
[1765620600526,0.01104886,90507.0,90504.0,0.001]
[1765620600728,0.00812,90505.0,90504.0,0.001]
[1765620601232,0.24015137,90505.0,90502.0,0.0151]
[1765620601407,0.02209322,90503.0,90502.0,0.0151]
[1765620602380,0.02209322,90503.0,90502.0,0.0171]
[1765620602739,0.02209322,90503.0,90502.0,0.0151]
[1765620603150,0.02209322,90503.0,90502.0,0.0161]
[1765620603578,0.02209322,90503.0,90502.0,0.0171]
[1765620605325,0.24308036,90503.0,90502.0,0.0171]
[1765620605733,0.24308036,90503.0,90502.0,0.002]
[1765620612021,0.33266488,90503.0,90502.0,0.002]
[1765620612157,0.36585591,90503.0,90502.0,0.002]
[1765620612757,0.33266488,90503.0,90502.0,0.002]
[1765620612937,0.33266488,90503.0,90502.0,0.001]
[1765620613691,0.22101156,90493.0,90492.0,0.00156589]
[1765620613926,0.27927608,90493.0,90492.0,0.00156589]
[1765620614130,0.30247608,90493.0,90492.0,0.00156589]
[1765620627807,0.25355156,90493.0,90492.0,0.00156589]
[1765620636197,0.25355156,90493.0,90492.0,0.00092437]
[1765620637609,0.23611156,90493.0,90492.0,0.00092437]
[1765620650680,0.22101156,90493.0,90492.0,0.00092437]
[1765620650855,0.22101156,90493.0,90492.0,0.02367437]
[1765620651264,0.22101156,90493.0,90492.0,0.00092437]
[1765620657988,0.22101156,90493.0,90492.0,0.01745437]
[1765620658202,0.22101156,90493.0,90492.0,0.04095437]
[1765620659671,0.22101156,90493.0,90492.0,0.01745437]
[1765620660674,0.22101156,90493.0,90492.0,0.00092437]
[1765620664884,0.22101156,90493.0,90492.0,0.04095437]
[1765620665288,0.23205942,90495.0,90492.0,0.04095437]
[1765620666642,0.23205942,90495.0,90492.0,0.01745437]
[1765620666841,0.22101061,90494.0,90492.0,0.01745437]
[1765620667263,0.22101061,90494.0,90492.0,0.00092437]
[1765620671854,0.25338061,90494.0,90492.0,0.00092437]
[1765620674992,0.22925061,90494.0,90492.0,0.00092437]
[1765620677367,0.25338061,90494.0,90492.0,0.00092437]
[1765620679078,0.22925061,90494.0,90492.0,0.00092437]
[1765620680657,0.22925061,90494.0,90493.0,0.05203]
[1765620680658,0.22101061,90494.0,90493.0,0.05203]
[1765620680888,0.24673871,90504.0,90501.0,0.0110496]
[1765620681101,0.24673871,90504.0,90503.0,0.02389]
[1765620681304,0.24673871,90504.0,90503.0,0.02550287]
[1765620681715,0.01104862,90509.0,90503.0,0.03655222]
[1765620681936,0.0110485,90510.0,90505.0,0.01104911]
[1765620682108,0.01104862,90509.0,90505.0,0.01104911]
[1765620682286,0.0110485,90510.0,90505.0,0.23203137]
[1765620682455,0.0110485,90510.0,90506.0,0.01104899]
[1765620684459,0.0110485,90510.0,90507.0,0.01104886]
[1765620686429,0.0110485,90510.0,90506.0,0.01104899]
[1765620686630,0.0110485,90510.0,90507.0,0.001]
[1765620687446,0.02209322,90508.0,90506.0,0.01104899]
[1765620687646,0.02209322,90508.0,90506.0,0.01204899]
[1765620687845,0.02209322,90508.0,90506.0,0.001]
[1765620688047,0.02209322,90508.0,90504.0,0.23203159]
[1765620688048,0.25411732,90508.0,90504.0,0.23203159]
[1765620688445,0.25411732,90508.0,90507.0,0.001]
[1765620688869,0.03314196,90508.0,90507.0,0.001]
[1765620689245,0.02209322,90508.0,90507.0,0.001]
[1765620690882,0.02209322,90508.0,90507.0,0.002]
[1765620693877,0.02209322,90508.0,90507.0,0.0257]
[1765620694086,0.00824,90514.0,90511.0,0.01104838]
[1765620694305,0.02209322,90515.0,90513.0,0.24955091]
[1765620694503,0.02209322,90515.0,90514.0,0.01612]
[1765620694725,0.02209322,90515.0,90514.0,0.03982]
[1765620696955,0.02209322,90515.0,90514.0,0.26078029]
[1765620704424,0.04537322,90515.0,90514.0,0.22096029]
[1765620704661,0.04537322,90515.0,90470.0,0.01105338]
[1765620704662,0.22101156,90493.0,90470.0,0.01105338]
[1765620704881,0.22101156,90493.0,90463.0,0.0237]
[1765620704882,0.29665608,90493.0,90463.0,0.01105424]
[1765620705101,0.31917608,90493.0,90468.0,0.02352363]
[1765620705327,0.31917608,90493.0,90470.0,0.38688724]
[1765620705544,0.31917608,90493.0,90471.0,0.01105326]
[1765620705768,0.31917608,90493.0,90472.0,0.01105314]
[1765620706019,0.32117608,90493.0,90470.0,0.38688724]
[1765620706449,0.32317608,90493.0,90470.0,0.38688724]
[1765620706605,0.32317608,90493.0,90470.0,0.39794062]
[1765620707466,0.32317608,90493.0,90471.0,0.01105326]
[1765620708800,0.32317608,90493.0,90469.0,0.03475351]
[1765620708992,0.32317608,90493.0,90471.0,0.01105326]
[1765620709648,0.32317608,90493.0,90470.0,0.39794062]
[1765620710276,0.32317608,90493.0,90471.0,0.01105326]
[1765620710434,0.32317608,90493.0,90470.0,0.39794062]
[1765620711610,0.32317608,90493.0,90471.0,0.01105326]
[1765620711814,0.32317608,90493.0,90470.0,0.38688724]
[1765620712080,0.32317608,90493.0,90470.0,0.39794062]
[1765620712592,0.32317608,90493.0,90472.0,0.01105314]
[1765620712808,0.32317608,90493.0,90471.0,0.01105326]
[1765620713159,0.32317608,90493.0,90473.0,0.01105302]
[1765620713353,0.32317608,90493.0,90471.0,0.01105326]
[1765620713557,0.32317608,90493.0,90473.0,0.01105302]
[1765620713804,0.32317608,90493.0,90472.0,0.01105314]
[1765620714732,0.32317608,90493.0,90471.0,0.03315979]
[1765620714943,0.32317608,90493.0,90473.0,0.01105302]
[1765620715737,0.32317608,90493.0,90472.0,0.01105314]
[1765620716119,0.32317608,90493.0,90473.0,0.01105302]
[1765620716321,0.57067608,90493.0,90473.0,0.01105302]
[1765620716708,0.57067608,90493.0,90472.0,0.01105314]
[1765620717110,0.57067608,90493.0,90473.0,0.01105302]
[1765620719998,0.57067608,90493.0,90480.0,0.38714247]
[1765620720352,0.55323608,90493.0,90480.0,0.38714247]
[1765620720556,0.52751156,90493.0,90481.0,0.01185]
[1765620723245,0.51007156,90493.0,90481.0,0.01185]
[1765620723538,0.52751156,90493.0,90481.0,0.01185]
[1765620728147,0.48755156,90493.0,90481.0,0.01185]
[1765620728355,0.47251156,90493.0,90485.0,0.04708155]
[1765620728555,0.47251156,90493.0,90489.0,0.01185]
[1765620729140,0.47051156,90493.0,90489.0,0.01185]
[1765620729501,0.47251156,90493.0,90489.0,0.01185]
[1765620729706,0.47051156,90493.0,90489.0,0.01185]
[1765620730123,0.47251156,90493.0,90489.0,0.01185]
[1765620733366,0.51325156,90493.0,90481.0,0.01185]
[1765620733597,0.51325156,90493.0,90482.0,0.01105192]
[1765620733791,0.51325156,90493.0,90481.0,0.01185]
[1765620733948,0.51325156,90493.0,90481.0,0.02290204]
[1765620734153,0.51325156,90493.0,90483.0,0.01105179]
[1765620734406,0.51325156,90493.0,90482.0,0.01105192]
[1765620734910,0.51325156,90493.0,90484.0,0.01105167]
[1765620735359,0.51325156,90493.0,90481.0,0.01185]
[1765620735983,0.51325156,90493.0,90482.0,0.01105192]
[1765620736188,0.51325156,90493.0,90481.0,0.01185]
[1765620736412,0.51325156,90493.0,90482.0,0.01105192]
[1765620736623,0.51325156,90493.0,90483.0,0.01105179]
[1765620736806,0.51325156,90493.0,90482.0,0.01105192]
[1765620737137,0.51325156,90493.0,90483.0,0.01105179]
[1765620737545,0.51325156,90493.0,90484.0,0.01105167]
[1765620738256,0.51325156,90493.0,90483.0,0.01105179]
[1765620738756,0.51325156,90493.0,90485.0,0.01105155]
[1765620739621,0.51325156,90493.0,90484.0,0.01105167]
[1765620739825,0.51325156,90493.0,90485.0,0.01105155]
[1765620740306,0.53069156,90493.0,90485.0,0.01105155]
[1765620740534,0.53069156,90493.0,90484.0,0.01105167]
[1765620740830,0.53069156,90493.0,90485.0,0.01105155]
[1765620740988,0.53069156,90493.0,90484.0,0.01105167]
[1765620742004,0.53069156,90493.0,90485.0,0.01105155]
[1765620742836,0.53069156,90493.0,90486.0,0.01105143]
[1765620742973,0.53069156,90493.0,90485.0,0.01105155]
[1765620743173,0.53069156,90493.0,90483.0,0.01105179]
[1765620743370,0.53069156,90493.0,90485.0,0.01105155]
[1765620743779,0.53069156,90493.0,90484.0,0.01105167]
[1765620744203,0.50593156,90493.0,90485.0,0.01105155]
[1765620744611,0.50593156,90493.0,90486.0,0.01105143]
[1765620745652,0.50593156,90493.0,90485.0,0.01105155]
[1765620745976,0.50593156,90493.0,90486.0,0.01105143]
[1765620747303,0.50593156,90493.0,90485.0,0.01105155]
[1765620747676,0.50593156,90493.0,90486.0,0.01105143]
[1765620748790,0.50593156,90493.0,90485.0,0.01105155]
[1765620748991,0.50593156,90493.0,90486.0,0.01105143]
[1765620750490,0.50593156,90493.0,90485.0,0.01105155]
[1765620750714,0.50593156,90493.0,90486.0,0.01105143]
[1765620750917,0.48995156,90493.0,90485.0,0.02088155]
[1765620751620,0.48995156,90493.0,90487.0,0.01105131]
[1765620751828,0.26894,90493.0,90489.0,0.01105106]
[1765620752005,0.2515,90493.0,90492.0,0.03949437]
[1765620752720,0.2515,90493.0,90492.0,0.00092437]
[1765620752924,0.2495,90493.0,90492.0,0.00092437]
[1765620753078,0.2485,90493.0,90492.0,0.00092437]
[1765620759773,0.2485,90493.0,90492.0,0.02576724]
[1765620759987,0.2485,90493.0,90492.0,0.04110724]
[1765620760340,0.2485,90493.0,90492.0,0.01787724]
[1765620763385,0.2485,90493.0,90492.0,0.23889125]
[1765620763784,0.001,90493.0,90492.0,0.23889125]
[1765620763999,0.001,90493.0,90492.0,0.01787724]
[1765620766812,0.001,90493.0,90492.0,0.04110724]
[1765620782327,0.001,90493.0,90492.0,0.06320864]
[1765620782698,0.001,90493.0,90492.0,0.04110724]
[1765620782949,0.01104947,90502.0,90492.0,0.04110724]
[1765620783073,0.01104947,90502.0,90498.0,0.02872]
[1765620783298,0.0110496,90501.0,90498.0,0.03033287]
[1765620783504,0.0110496,90501.0,90498.0,0.05288287]
[1765620783903,0.01104947,90502.0,90498.0,0.05288287]
[1765620784308,2.57200186,90560.0,90498.0,0.05288287]
[1765620784309,0.03900026,90499.0,90498.0,0.05288287]
[1765620784734,0.03900026,90499.0,90498.0,0.08606652]
[1765620784942,0.03900026,90499.0,90498.0,0.37676652]
[1765620785145,0.03900026,90499.0,90498.0,0.41996652]
[1765620785370,0.04000026,90499.0,90498.0,0.41996652]
[1765620785751,0.03700026,90499.0,90498.0,0.41996652]
[1765620785963,0.03700026,90499.0,90498.0,0.42096652]
[1765620786180,0.03700026,90499.0,90498.0,0.42196652]
[1765620786402,0.03700026,90499.0,90498.0,0.37876652]
[1765620786541,0.03700026,90499.0,90498.0,0.42196652]
[1765620787511,0.03700026,90499.0,90498.0,0.48150017]
[1765620788229,0.03700026,90499.0,90498.0,0.47198491]
[1765620795411,0.01104801,90514.0,90510.0,0.0110485]
[1765620795649,0.01104789,90515.0,90511.0,0.01104838]
[1765620795814,0.01104813,90513.0,90511.0,0.01057]
[1765620796041,0.01104813,90513.0,90511.0,0.04375218]
[1765620797279,0.01304801,90514.0,90511.0,0.04375218]
[1765620797505,0.01304801,90514.0,90513.0,0.02872]
[1765620797506,0.002,90514.0,90513.0,0.02872]
[1765620797713,0.002,90514.0,90513.0,0.24968273]
[1765620797903,0.02209322,90519.0,90517.0,0.22095297]
[1765620798124,0.02209322,90519.0,90517.0,0.23729297]
[1765620798259,0.02209322,90519.0,90517.0,0.25984297]
[1765620799326,0.00110225,90518.0,90517.0,0.25984297]
[1765620800864,0.00110225,90518.0,90517.0,0.03889]
[1765620802419,0.00110225,90518.0,90517.0,0.0512]
[1765620804212,0.00110225,90518.0,90517.0,0.05281287]
[1765620805772,0.00010225,90518.0,90517.0,0.05381287]
[1765620805991,0.00010225,90518.0,90517.0,0.08799069]
[1765620806409,0.00010225,90518.0,90517.0,0.11008598]
[1765620807192,0.00010225,90518.0,90517.0,0.15328598]
[1765620810517,0.00010225,90518.0,90517.0,0.40078598]
[1765620810823,0.00010225,90518.0,90517.0,0.37869069]
[1765620813597,0.00010225,90518.0,90517.0,0.42189069]
[1765620814428,0.00010225,90518.0,90517.0,0.48131326]
[1765620815969,0.00010225,90518.0,90517.0,0.43811326]
[1765620816141,0.00010225,90518.0,90517.0,0.37869069]
[1765620816730,0.00010225,90518.0,90517.0,0.42189069]
[1765620820798,0.00010225,90518.0,90517.0,0.37869069]
[1765620821306,0.00010225,90518.0,90517.0,0.42189069]
[1765620823967,0.00010225,90518.0,90517.0,0.37869069]
[1765620824273,0.00010225,90518.0,90517.0,0.42189069]
[1765620825454,0.00010225,90518.0,90517.0,0.37869069]
[1765620826769,0.00010225,90518.0,90517.0,0.42189069]
[1765620835256,0.00010225,90518.0,90517.0,0.47190908]
[1765620837075,0.00010225,90518.0,90517.0,0.42870908]
[1765620837251,0.00010225,90518.0,90517.0,0.47190908]
[1765620841981,0.00010225,90518.0,90517.0,0.42870908]
[1765620842183,0.00010225,90518.0,90517.0,0.47190908]
[1765620844540,0.00010225,90518.0,90517.0,0.55138596]
[1765620845228,0.00010225,90518.0,90517.0,0.47190908]
[1765620845431,0.00010225,90518.0,90517.0,0.55138596]
[1765620847561,6.225e-05,90518.0,90517.0,0.55138596]
[1765620863630,6.225e-05,90518.0,90517.0,0.50818596]
[1765620865574,6.225e-05,90518.0,90517.0,0.42870908]
[1765620866452,6.225e-05,90518.0,90517.0,0.50817688]
[1765620867251,6.225e-05,90518.0,90517.0,0.42870908]
[1765620867453,6.225e-05,90518.0,90517.0,0.50817723]
[1765620868413,6.225e-05,90518.0,90517.0,0.42870908]
[1765620870366,6.225e-05,90518.0,90517.0,0.47190908]
[1765620872445,6.225e-05,90518.0,90517.0,0.55138214]
[1765620877748,6.225e-05,90518.0,90517.0,0.47190908]
[1765620877947,6.225e-05,90518.0,90517.0,0.55138437]
[1765620880600,6.225e-05,90518.0,90517.0,0.50818437]
[1765620880943,6.225e-05,90518.0,90517.0,0.55138437]
[1765620881373,6.225e-05,90518.0,90517.0,0.47190908]
[1765620881558,6.225e-05,90518.0,90517.0,0.55138684]
[1765620881979,6.225e-05,90518.0,90517.0,0.47190908]
[1765620892051,6.225e-05,90518.0,90517.0,0.42870908]
[1765620892659,6.225e-05,90518.0,90517.0,0.47190908]
[1765620900431,2.25e-06,90518.0,90517.0,0.47190908]
[1765620900642,2.25e-06,90518.0,90517.0,1.47190908]
[1765620900887,0.00824,90546.0,90529.0,0.01104618]
[1765620901063,0.00824,90546.0,90544.0,0.22088708]
[1765620901425,0.00010233,90546.0,90545.0,0.24501464]
[1765620901627,0.00010233,90546.0,90545.0,0.26990464]
[1765620902031,0.00010233,90546.0,90545.0,0.29199786]
[1765620902987,0.00110233,90546.0,90545.0,0.29199786]
[1765620903394,0.00010233,90546.0,90545.0,0.29199786]
[1765620903601,0.00110233,90546.0,90545.0,0.29199786]
[1765620903826,0.00010233,90546.0,90545.0,0.29299786]
[1765620905504,0.00010233,90546.0,90545.0,0.25213786]
[1765620909290,0.00010233,90546.0,90545.0,0.27702786]
[1765620909494,0.00010233,90546.0,90545.0,0.29299786]
[1765620912812,0.00010233,90546.0,90545.0,0.26810786]
[1765620915835,0.00010233,90546.0,90545.0,0.29299786]
[1765620916962,0.00010233,90546.0,90545.0,0.33619786]
[1765620918479,0.00010233,90546.0,90545.0,0.29299786]
[1765620919885,0.00010233,90546.0,90545.0,0.33619786]
[1765620920610,0.00010233,90546.0,90545.0,0.29299786]
[1765620921262,0.00010233,90546.0,90545.0,0.33619786]
[1765620921467,0.00010233,90546.0,90545.0,0.29299786]
[1765620924872,0.00010233,90546.0,90545.0,0.29461073]
[1765620926811,0.00010233,90546.0,90545.0,0.58531073]
[1765620928437,0.00010233,90546.0,90545.0,0.62851073]
[1765620942393,0.00010233,90546.0,90545.0,0.58531073]
[1765620942605,0.00010233,90546.0,90545.0,0.62851073]
[1765620942947,0.00010233,90546.0,90545.0,0.58531073]
[1765620943350,0.00010233,90546.0,90545.0,0.62851073]
[1765620944581,0.00010233,90546.0,90545.0,0.58531073]
[1765620945688,0.00010233,90546.0,90545.0,0.62851073]
[1765620947690,0.00010233,90546.0,90545.0,0.58531073]
[1765620947891,0.00010233,90546.0,90545.0,0.62851073]
[1765620952429,0.00010233,90546.0,90545.0,0.58531073]
[1765620969110,0.00010233,90546.0,90545.0,0.58499634]
[1765620986222,0.00010233,90546.0,90545.0,0.62819634]
[1765620986685,0.00010233,90546.0,90545.0,0.58499634]
[1765620996777,0.00010233,90546.0,90545.0,0.31379322]
[1765620996980,0.26243453,90546.0,90545.0,0.001]
[1765620997183,0.30559905,90546.0,90545.0,0.001]
[1765620998023,0.23193507,90543.0,90539.0,0.01104496]
[1765620998436,0.00839,90542.0,90539.0,0.01104496]
[1765620999827,0.00839,90542.0,90540.0,0.22089684]
[1765621001194,0.00839,90542.0,90539.0,0.01104496]
[1765621001398,0.00839,90542.0,90540.0,0.001]
[1765621001599,0.00839,90542.0,90540.0,0.002]
[1765621003448,0.00839,90542.0,90540.0,0.001]
[1765621004098,0.00839,90542.0,90540.0,0.22189513]
[1765621004496,0.00839,90542.0,90540.0,0.22289513]
[1765621005033,0.00839,90542.0,90540.0,0.002]
[1765621005557,0.00839,90542.0,90540.0,0.22289448]
[1765621009021,0.00010233,90546.0,90543.0,0.01104447]
[1765621009229,0.00010233,90546.0,90545.0,0.24553464]
[1765621009640,0.00010233,90546.0,90545.0,0.27063751]
[1765621010260,0.00010233,90546.0,90545.0,0.30380528]
[1765621012940,0.00010233,90546.0,90545.0,0.30480528]
[1765621016171,0.00010233,90546.0,90545.0,0.6550843]
[1765621023544,0.00010233,90546.0,90545.0,0.09374679]
[1765621023696,0.00010233,90546.0,90545.0,0.001]
[1765621023697,0.30215905,90546.0,90545.0,0.001]
[1765621024444,0.25899453,90546.0,90545.0,0.001]
[1765621025345,0.23193143,90544.0,90541.0,0.03043858]
[1765621025508,0.0234,90542.0,90541.0,0.03043858]
[1765621025913,0.04636,90542.0,90541.0,0.03043858]
[1765621026110,0.04636,90542.0,90541.0,0.01939386]
[1765621026313,0.04636,90542.0,90539.0,0.30174496]
[1765621026533,0.0234,90542.0,90541.0,0.001]
[1765621027151,0.0234,90542.0,90540.0,0.0331711]
[1765621027919,0.0234,90542.0,90541.0,0.001]
[1765621028353,0.24429383,90542.0,90540.0,0.0331711]
[1765621028557,0.03801,90541.0,90540.0,0.001]
[1765621028965,0.0110452,90537.0,90535.0,0.0331725]
[1765621029168,0.2209066,90536.0,90535.0,0.0331725]
[1765621029620,0.0110452,90537.0,90535.0,0.0331725]
[1765621030507,0.0110452,90537.0,90535.0,0.0341725]
[1765621031421,0.0110452,90537.0,90535.0,0.0351725]
[1765621032192,0.0110452,90537.0,90535.0,0.0341725]
[1765621032707,0.0110452,90537.0,90535.0,0.0351725]
[1765621032905,0.0110452,90537.0,90535.0,0.002]
[1765621039049,0.01928508,90538.0,90535.0,0.01304545]
[1765621040081,0.01928508,90538.0,90535.0,0.01204545]
[1765621040230,0.01928508,90538.0,90529.0,0.2907]
[1765621040231,0.23196123,90533.0,90529.0,0.2907]
[1765621040452,0.02209322,90530.0,90529.0,0.33492132]
[1765621042026,0.02209322,90530.0,90529.0,0.33692132]
[1765621042431,0.02209322,90530.0,90529.0,0.33492132]
[1765621042810,0.02209322,90530.0,90529.0,0.33592132]
[1765621043846,0.00824,90538.0,90536.0,0.22090494]
[1765621044058,0.00824,90538.0,90535.0,0.01104545]
[1765621044260,0.00824,90538.0,90536.0,0.2209066]
[1765621045092,0.001,90538.0,90536.0,0.2209066]
[1765621046961,0.001,90538.0,90536.0,0.2458766]
[1765621047164,0.001,90538.0,90537.0,0.0106]
[1765621047796,0.03777016,90540.0,90538.0,0.22090172]
[1765621049646,0.03777016,90540.0,90538.0,0.22190172]
[1765621051044,0.03777016,90540.0,90538.0,0.001]
[1765621051726,0.03777016,90540.0,90538.0,0.22190012]
[1765621051949,0.03777016,90540.0,90538.0,0.001]
[1765621052381,0.03777016,90540.0,90538.0,0.22189936]
[1765621056499,0.03777016,90540.0,90538.0,0.001]
[1765621057397,0.03777016,90540.0,90538.0,0.22190019]
[1765621062040,0.03777016,90540.0,90538.0,0.001]
[1765621062960,0.03777016,90540.0,90538.0,0.22189973]
[1765621066941,0.03777016,90540.0,90539.0,0.22089928]
[1765621067143,0.03777016,90540.0,90538.0,0.001]
[1765621067777,0.03777016,90540.0,90539.0,0.22089928]
[1765621068195,0.03777016,90540.0,90539.0,0.22189928]
[1765621069242,0.03777016,90540.0,90539.0,0.22089928]
[1765621070378,0.03777016,90540.0,90539.0,0.22189928]
[1765621071924,0.03777016,90540.0,90539.0,0.001]
[1765621072177,0.07760016,90540.0,90539.0,0.001]
[1765621072572,0.05368016,90540.0,90539.0,0.001]
[1765621072803,0.03777016,90540.0,90539.0,0.22189928]
[1765621073006,0.03777016,90540.0,90539.0,0.22089928]
[1765621075322,0.03777016,90540.0,90539.0,0.26083928]
[1765621075532,0.03777016,90540.0,90539.0,0.22089928]
[1765621075730,0.03777016,90540.0,90539.0,0.26083928]
[1765621078334,0.03777016,90540.0,90539.0,0.22089928]
[1765621079485,0.03777016,90540.0,90538.0,0.2209014]
[1765621080522,0.00832,90539.0,90538.0,0.2209014]
[1765621085144,0.00832,90539.0,90537.0,0.0110452]
[1765621085145,0.04867,90539.0,90537.0,0.0110452]
[1765621085351,0.01615,90538.0,90537.0,0.0110452]
[1765621085701,0.04035,90538.0,90537.0,0.0110452]
[1765621088850,0.00832,90539.0,90538.0,0.22090172]
[1765621089943,0.03777016,90540.0,90538.0,0.22090172]
[1765621090489,0.03777016,90540.0,90539.0,0.03994]
[1765621093544,0.03777016,90540.0,90538.0,0.28048074]
[1765621094252,0.03777016,90540.0,90539.0,0.001]
[1765621094997,0.03777016,90540.0,90538.0,0.22090172]
[1765621095185,0.03777016,90540.0,90538.0,0.22190172]
[1765621095580,0.03777016,90540.0,90538.0,0.28048074]
[1765621095970,0.03777016,90540.0,90539.0,0.001]
[1765621096991,0.03777016,90540.0,90538.0,0.22090172]
[1765621097194,0.03777016,90540.0,90539.0,0.03994]
[1765621098529,0.03777016,90540.0,90539.0,0.01676]
[1765621099357,0.03777016,90540.0,90539.0,0.04094]
[1765621105014,0.03777016,90540.0,90539.0,0.01676]
[1765621108314,0.03777016,90540.0,90539.0,0.001]
[1765621108744,0.03777016,90540.0,90539.0,0.02426]
[1765621109671,0.03777016,90540.0,90539.0,0.06228992]
[1765621110955,0.03777016,90540.0,90539.0,0.06390279]
[1765621114409,0.03777016,90540.0,90539.0,0.12348181]
[1765621114788,0.03777016,90540.0,90539.0,0.06390279]
[1765621115790,0.03777016,90540.0,90539.0,0.1234213]
[1765621116617,0.03777016,90540.0,90539.0,0.06390279]
[1765621116821,0.03777016,90540.0,90539.0,0.1234213]
[1765621119027,0.03777016,90540.0,90539.0,0.1357813]
[1765621122403,0.03777016,90540.0,90539.0,0.11369138]
[1765621123379,0.03777016,90540.0,90539.0,0.05417287]
[1765621123587,0.03777016,90540.0,90539.0,0.08734086]
[1765621124406,0.03777016,90540.0,90539.0,0.37804086]
[1765621124582,0.03777016,90540.0,90539.0,0.42124086]
[1765621126780,0.03777016,90540.0,90539.0,0.47125925]
[1765621127197,0.03777016,90540.0,90539.0,0.42805925]
[1765621127399,0.03777016,90540.0,90539.0,0.47125925]
[1765621127957,0.03777016,90540.0,90539.0,0.42805925]
[1765621128163,0.00010233,90546.0,90545.0,0.60480303]
[1765621128377,0.00010233,90546.0,90545.0,0.6521159]
[1765621128629,0.00010233,90546.0,90545.0,0.6753759]
[1765621128848,0.00010233,90546.0,90545.0,0.67979777]
[1765621129259,0.00010233,90546.0,90545.0,0.68179777]
[1765621129801,0.00010233,90546.0,90545.0,0.68379777]
[1765621132467,0.00010233,90546.0,90545.0,0.64059777]
[1765621132909,0.00010233,90546.0,90545.0,0.69998216]
[1765621133148,0.00010233,90546.0,90545.0,0.64059777]
[1765621137749,0.00010233,90546.0,90545.0,0.68379777]
[1765621138359,0.00010233,90546.0,90545.0,0.64059777]
[1765621143196,0.00010233,90546.0,90545.0,0.68379777]
[1765621144046,0.00010233,90546.0,90545.0,0.64059777]
[1765621144221,0.00010233,90546.0,90545.0,0.68379777]
[1765621144802,0.00010233,90546.0,90545.0,0.64059777]
[1765621145614,0.00010233,90546.0,90545.0,0.63859777]
[1765621145822,0.00010233,90546.0,90545.0,0.68179777]
[1765621146359,0.00010233,90546.0,90545.0,0.64059777]
[1765621147423,0.00010233,90546.0,90545.0,0.68379777]
[1765621151707,0.00010233,90546.0,90545.0,0.64059777]
[1765621151917,0.00010233,90546.0,90545.0,0.68379777]
[1765621152355,0.00010233,90546.0,90545.0,0.64059777]
[1765621157421,0.00010233,90546.0,90545.0,0.68379777]
[1765621158264,0.00010233,90546.0,90545.0,0.64059777]